[Event "FIDE World Rapid-ch Open 2018"]
[White "Geller, Jakov"]
[Black "Christiansen, Johan-Sebastian"]
[Site "St. Petersburg"]
[Round "14.74"]
[Annotator "ChessBase"]
[Result "1-0"]
[Date "2018.12.28"]
[WhiteElo "2518"]
[BlackElo "2555"]
[PlyCount "105"]
[TimeControl "900+10"]

1. e4 {[%emt 0:0:0]} e6 {[%emt 0:0:0]} 2. d4 {[%emt 0:0:0]} d5 {[%emt 0:0:0]} 3. Nc3 {[%emt 0:0:0]} Nf6 {[%emt 0:0:2]} 4. Bg5 {[%emt 0:0:2]} dxe4 {[%emt 0:0:12]} 5. Nxe4 {[%emt 0:0:3]} Be7 {[%emt 0:0:2]} 6. Bxf6 {[%emt 0:0:19]
} gxf6 {[%emt 0:0:2]} 7. c3 {[%emt 0:0:21]} f5 {[%emt 0:0:8]
} 8. Nd2 {[%emt 0:0:21]} c5 {[%emt 0:0:5]} 9. Ngf3 {[%emt 0:0:22]} Nc6 {[%emt 0:0:7]
} 10. Bb5 {[%emt 0:0:32]} 0-0 {[%emt 0:0:36]} 11. Bxc6 {[%emt 0:0:41]
} bxc6 {[%emt 0:0:2]} 12. 0-0 {[%emt 0:0:8]} Rb8 {[%emt 0:0:0]} 13. b3 {[%emt 0:0:10]} cxd4 {[%emt 0:0:22]} 14. Nxd4 {[%emt 0:0:11]} Qc7 {[%emt 0:0:12]} 15. Qh5 {[%emt 0:0:54]} Bf6 {[%emt 0:0:22]} 16. Rae1 {[%emt 0:0:30]
} Kh8 {[%emt 0:1:42]} 17. Re3 {[%emt 0:0:43]} Rg8 {[%emt 0:0:0]} 18. Rfe1 {[%emt 0:0:18]} Bb7 {[%emt 0:0:39]} 19. Rg3 {[%emt 0:1:0]} c5 {[%emt 0:0:28]} 20. N4f3 {[%emt 0:0:3]} Rbd8 {[%emt 0:1:30]} 21. Nc4 {[%emt 0:0:35]
} Be4 {[%emt 0:1:16]} 22. Ng5 {[%emt 0:0:49]} Bxg5 {[%emt 0:0:0]} 23. Rxg5 {[%emt 0:0:3]} Qf4 {[%emt 0:3:17]} 24. Rg3 {[%emt 0:0:12]} Rg6 {[%emt 0:1:41]} 25. Rxg6 {[%emt 0:1:18]} fxg6 {[%emt 0:0:1]} 26. Qe2 {[%emt 0:0:3]
} Kg7 {[%emt 0:1:18]} 27. f3 {[%emt 0:1:22]} Bd5 {[%emt 0:0:0]} 28. Ne5 {[%emt 0:0:12]} Ba8 {[%emt 0:1:10]} 29. Nd3 {[%emt 0:1:8]} Qd6 {[%emt 0:0:1]} 30. Rd1 {[%emt 0:0:6]} Qa6 {[%emt 0:0:42]} 31. c4 {[%emt 0:0:0]} Qb6 {[%emt 0:0:58]} 32. Nf4 {[%emt 0:0:56]} Rxd1+ {[%emt 0:0:11]} 33. Qxd1 {[%emt 0:0:1]} Kh6 {[%emt 0:0:6]} 34. Qd2 {[%emt 0:0:14]} g5 {[%emt 0:0:28]
} 35. Nh3 {[%emt 0:0:8]} f4 {[%emt 0:0:1]} 36. Nf2 {[%emt 0:0:0]} Kg6 {[%emt 0:0:57]} 37. Qd3+ {[%emt 0:0:16]} Kg7 {[%emt 0:0:3]} 38. Qd7+ {[%emt 0:0:22]} Kf8 {[%emt 0:0:46]} 39. Qc8+ {[%emt 0:0:21]} Kg7 {[%emt 0:0:27]
} 40. Qxa8 {[%emt 0:0:11]} Qa5 {[%emt 0:0:2]} 41. Qe4 {[%emt 0:0:6]
} Qxa2 {[%emt 0:0:4]} 42. h4 {[%emt 0:0:13]} Qxb3 {[%emt 0:0:0]} 43. hxg5 {[%emt 0:0:6]} a5 {[%emt 0:0:2]} 44. Qe5+ {[%emt 0:0:18]} Kf7 {[%emt 0:0:4]} 45. Qf6+ {[%emt 0:0:25]} Ke8 {[%emt 0:0:8]} 46. Qxe6+ {[%emt 0:0:3]
} Kf8 {[%emt 0:0:1]} 47. Qf6+ {[%emt 0:0:5]} Ke8 {[%emt 0:0:0]} 48. Qh8+ {[%emt 0:0:3]} Kd7 {[%emt 0:0:6]} 49. Qxh7+ {[%emt 0:0:3]} Kc6 {[%emt 0:0:1]} 50. Qe4+ {[%emt 0:0:8]} Kb6 {[%emt 0:0:3]} 51. Qe6+ {[%emt 0:0:6]
} Ka7 {[%emt 0:0:2]} 52. Qd7+ {[%emt 0:0:6]} Ka8 {[%emt 0:0:0]} 53. Qc8+ {[%emt 0:0:8]} 1-0

[Event "FIDE World Rapid-ch Open 2018"]
[White "Khusnutdinov, Rustam"]
[Black "Tissir, Mohamed"]
[Site "St. Petersburg"]
[Round "14.75"]
[Annotator "ChessBase"]
[Result "1/2-1/2"]
[Date "2018.12.28"]
[WhiteElo "2470"]
[BlackElo "2387"]
[PlyCount "125"]
[TimeControl "900+10"]

1. e4 {[%emt 0:0:0]} c5 {[%emt 0:0:0]} 2. Nf3 {[%emt 0:0:0]} d6 {[%emt 0:0:0]} 3. d4 {[%emt 0:0:0]} cxd4 {[%emt 0:0:0]} 4. Qxd4 {[%emt 0:0:0]} Nd7 {[%emt 0:0:0]} 5. Be2 {[%emt 0:0:2]} Ngf6 {[%emt 0:0:7]} 6. 0-0 {[%emt 0:0:4]
} a6 {[%emt 0:0:2]} 7. Rd1 {[%emt 0:0:20]} Qc7 {[%emt 0:0:2]
} 8. c4 {[%emt 0:0:1]} e6 {[%emt 0:0:8]} 9. Nc3 {[%emt 0:0:2]} Be7 {[%emt 0:0:8]
} 10. Bg5 {[%emt 0:5:28]} 0-0 {[%emt 0:0:22]} 11. Bh4 {[%emt 0:0:0]} Ne5 {[%emt 0:2:30]} 12. Bxf6 {[%emt 0:0:38]} gxf6 {[%emt 0:0:1]} 13. Rac1 {[%emt 0:0:5]} Kh8 {[%emt 0:0:9]} 14. Qe3 {[%emt 0:0:5]} Rg8 {[%emt 0:0:4]
} 15. Nd4 {[%emt 0:0:5]} Bd7 {[%emt 0:3:6]} 16. Kh1 {[%emt 0:0:0]} Rg7 {[%emt 0:0:5]} 17. f4 {[%emt 0:0:4]} Ng4 {[%emt 0:0:24]} 18. Qg1 {[%emt 0:2:5]} Rag8 {[%emt 0:0:10]} 19. Bf3 {[%emt 0:1:31]} Qc5 {[%emt 0:2:9]
} 20. h3 {[%emt 0:0:17]} Nh6 {[%emt 0:2:59]} 21. Nde2 {[%emt 0:0:0]} Qc8 {[%emt 0:0:15]} 22. Qe3 {[%emt 0:4:2]} f5 {[%emt 0:0:19]} 23. e5 {[%emt 0:0:31]} dxe5 {[%emt 0:0:37]} 24. Qxe5 {[%emt 0:0:1]} f6 {[%emt 0:1:7]
} 25. Qd4 {[%emt 0:0:39]} Be8 {[%emt 0:1:1]} 26. c5 {[%emt 0:0:0]} Bc6 {[%emt 0:0:13]} 27. Qf2 {[%emt 0:0:26]} Rxg2 {[%emt 0:3:8]} 28. Qxg2 {[%emt 0:0:12]} Rxg2 {[%emt 0:0:2]} 29. Bxg2 {[%emt 0:0:6]} Bxg2+ {[%emt 0:0:13]
} 30. Kxg2 {[%emt 0:0:0]} Qc6+ {[%emt 0:0:9]} 31. Kh2 {[%emt 0:0:12]
} Qf3 {[%emt 0:0:6]} 32. Rf1 {[%emt 0:0:15]} Qe3 {[%emt 0:0:0]} 33. b4 {[%emt 0:0:1]} Bd8 {[%emt 0:0:8]} 34. Rcd1 {[%emt 0:0:6]} Be7 {[%emt 0:0:20]} 35. Rd7 {[%emt 0:0:2]} Ng8 {[%emt 0:0:13]} 36. Rxb7 e5 37. Rd7 {[%emt 0:0:34]} exf4 {[%emt 0:0:5]} 38. Rxf4 {[%emt 0:0:4]} Nh6 {[%emt 0:0:6]
} 39. Kg2 {[%emt 0:0:11]} Qe6 {[%emt 0:0:4]} 40. Rd3 {[%emt 0:0:0]} Nf7 41. Nd4 {[%emt 0:0:30]} Qc4 {[%emt 0:0:2]} 42. Rdf3 {[%emt 0:0:0]} Ng5 {[%emt 0:0:22]} 43. Nxf5 Qe6 44. Re3 {[%emt 0:0:11]} Qc6+ {[%emt 0:0:0]} 45. Kh2 {[%emt 0:0:5]} Bf8 {[%emt 0:0:16]} 46. h4 {[%emt 0:0:17]} Nf7 {[%emt 0:0:5]} 47. Nd4 {[%emt 0:0:13]} Qd7 {[%emt 0:0:16]} 48. Kg2 {[%emt 0:0:15]
} Bh6 {[%emt 0:0:8]} 49. Ref3 {[%emt 0:0:6]} Bxf4 50. Rxf4 Ne5 {[%emt 0:0:21]} 51. Nce2 {[%emt 0:0:5]} Ng6 {[%emt 0:0:8]} 52. Rxf6 {[%emt 0:0:35]
} Qg4+ 53. Kf1 Nxh4 {[%emt 0:0:17]} 54. Rf8+ {[%emt 0:0:16]} Kg7 {[%emt 0:0:1]} 55. Rf4 {[%emt 0:0:0]} Qh3+ {[%emt 0:0:14]} 56. Kf2 {[%emt 0:0:2]
} Qh2+ {[%emt 0:0:8]} 57. Kf1 {[%emt 0:0:6]} Qh1+ {[%emt 0:0:0]} 58. Kf2 {[%emt 0:0:1]} Qh2+ {[%emt 0:0:14]} 59. Kf1 {[%emt 0:0:0]} Qh3+ {[%emt 0:0:24]} 60. Kf2 {[%emt 0:0:1]} Qh2+ 61. Kf1 Qh3+ 62. Kf2 Qh2+ 63. Kf1 1/2-1/2

[Event "FIDE World Rapid-ch Open 2018"]
[White "Sharma, Dinesh K."]
[Black "Zhigalko, Andrey"]
[Site "St. Petersburg"]
[Round "14.76"]
[Annotator "ChessBase"]
[Result "0-1"]
[Date "2018.12.28"]
[WhiteElo "2295"]
[BlackElo "2545"]
[PlyCount "140"]
[TimeControl "900+10"]

1. e4 {[%emt 0:0:0]} c5 {[%emt 0:0:0]} 2. Nf3 {[%emt 0:0:0]} d6 {[%emt 0:0:0]} 3. d4 {[%emt 0:0:0]} cxd4 {[%emt 0:0:0]} 4. Nxd4 {[%emt 0:0:0]} Nf6 {[%emt 0:0:0]} 5. Nc3 {[%emt 0:0:0]} a6 {[%emt 0:0:0]} 6. Be3 {[%emt 0:0:1]
} e6 {[%emt 0:0:0]} 7. f3 {[%emt 0:0:38]} b5 {[%emt 0:0:1]} 8. Qd2 {[%emt 0:0:2]} Nbd7 {[%emt 0:0:6]} 9. a3 {[%emt 0:1:24]} Bb7 {[%emt 0:0:51]
} 10. g4 {[%emt 0:0:3]} Nb6 {[%emt 0:0:35]} 11. Qf2 {[%emt 0:0:0]} Nfd7 {[%emt 0:0:15]} 12. 0-0-0 {[%emt 0:0:30]} Rc8 {[%emt 0:0:11]} 13. Bd3 {[%emt 0:1:7]} Rxc3 {[%emt 0:0:21]} 14. bxc3 {[%emt 0:0:2]} d5 {[%emt 0:0:54]
} 15. Kd2 {[%emt 0:0:19]} Bxa3 {[%emt 0:0:40]} 16. Rb1 {[%emt 0:0:51]
} 0-0 {[%emt 0:0:27]} 17. g5 {[%emt 0:0:26]} dxe4 {[%emt 0:0:0]} 18. fxe4 {[%emt 0:0:5]} Nc5 {[%emt 0:1:34]} 19. Qh4 {[%emt 0:0:35]} e5 {[%emt 0:1:42]} 20. Nf5 {[%emt 0:0:2]} Nc4+ {[%emt 0:0:57]} 21. Ke2 {[%emt 0:0:11]
} Nxe3 {[%emt 0:0:9]} 22. Nxe3 {[%emt 0:0:16]} Ne6 {[%emt 0:0:0]} 23. Rhg1 {[%emt 0:0:8]} Nf4+ {[%emt 0:1:28]} 24. Kf3 {[%emt 0:0:9]
} Nxd3 {[%emt 0:1:32]} 25. cxd3 {[%emt 0:0:1]} Qxd3 {[%emt 0:0:27]} 26. Rgd1 {[%emt 0:0:2]} Qxc3 {[%emt 0:0:6]} 27. Ke2 {[%emt 0:0:5]} Qc6 {[%emt 0:1:33]
} 28. Rb3 {[%emt 0:3:4]} Be7 {[%emt 0:0:27]} 29. Rd5 {[%emt 0:0:0]} h6 {[%emt 0:0:33]} 30. Rxe5 {[%emt 0:1:26]} Bxg5 {[%emt 0:0:7]} 31. Qg3 {[%emt 0:0:8]} Rd8 {[%emt 0:1:14]} 32. Rd5 {[%emt 0:0:24]} Re8 {[%emt 0:0:12]
} 33. Re5 {[%emt 0:0:50]} Rxe5 {[%emt 0:0:5]} 34. Qxe5 {[%emt 0:0:1]
} Qxe4 {[%emt 0:0:4]} 35. Qxe4 {[%emt 0:0:23]} Bxe4 {[%emt 0:0:0]} 36. Ra3 {[%emt 0:0:1]} Bb7 {[%emt 0:0:14]} 37. Nf5 {[%emt 0:0:2]} g6 {[%emt 0:0:23]} 38. Nd6 {[%emt 0:0:19]} Be7 {[%emt 0:0:11]} 39. Rd3 {[%emt 0:0:1]
} Bc6 {[%emt 0:0:18]} 40. Nc8 {[%emt 0:0:14]} Bg5 {[%emt 0:0:0]} 41. Rd6 {[%emt 0:0:34]} Bb7 {[%emt 0:0:9]} 42. Nb6 {[%emt 0:0:6]} b4 {[%emt 0:0:15]} 43. Na4 {[%emt 0:0:13]} Kg7 {[%emt 0:0:18]} 44. Rb6 {[%emt 0:0:9]
} Bc8 {[%emt 0:0:7]} 45. Rxb4 {[%emt 0:0:6]} Bd7 {[%emt 0:0:0]} 46. Nb6 {[%emt 0:0:11]} Bb5+ {[%emt 0:0:3]} 47. Kf3 {[%emt 0:0:16]} f5 {[%emt 0:0:14]} 48. Na4 {[%emt 0:0:43]} Be7 {[%emt 0:0:9]} 49. Rd4 {[%emt 0:0:5]
} Bf6 {[%emt 0:0:13]} 50. Rb4 {[%emt 0:0:6]} g5 {[%emt 0:0:0]} 51. h3 {[%emt 0:0:1]} h5 {[%emt 0:0:5]} 52. Nb2 {[%emt 0:0:40]} Be5 {[%emt 0:0:24]
} 53. Nc4 {[%emt 0:0:8]} g4+ {[%emt 0:0:1]} 54. hxg4 {[%emt 0:0:2]
} hxg4+ {[%emt 0:0:2]} 55. Kg2 {[%emt 0:0:11]} Bc3 {[%emt 0:0:0]} 56. Rb3 {[%emt 0:0:5]} Bd4 {[%emt 0:0:7]} 57. Nd6 {[%emt 0:0:13]} Bc6+ {[%emt 0:0:8]} 58. Kf1 {[%emt 0:0:1]} Kf6 {[%emt 0:0:15]} 59. Rb4 {[%emt 0:0:14]
} Be3 {[%emt 0:0:12]} 60. Rc4 {[%emt 0:0:9]} Bd5 {[%emt 0:0:0]} 61. Ra4 {[%emt 0:0:9]} f4 {[%emt 0:0:5]} 62. Rxa6 {[%emt 0:0:2]} Ke5 {[%emt 0:0:6]} 63. Nb5 {[%emt 0:0:16]} g3 {[%emt 0:0:16]} 64. Rg6 {[%emt 0:0:0]} Kf5 {[%emt 0:0:10]} 65. Rg7 {[%emt 0:0:34]} Bc4+ {[%emt 0:0:3]} 66. Kg2 {[%emt 0:0:1]} Bxb5 {[%emt 0:0:3]} 67. Rf7+ {[%emt 0:0:6]} Ke6 {[%emt 0:0:12]
} 68. Rc7 {[%emt 0:0:4]} Kd6 {[%emt 0:0:5]} 69. Rc3 {[%emt 0:0:0]} Bc6+ {[%emt 0:0:2]} 70. Kh3 {[%emt 0:0:5]} g2 {[%emt 0:0:16]} 0-1

[Event "FIDE World Rapid-ch Open 2018"]
[White "Pershin, Denis"]
[Black "Mikhalevski, Victor"]
[Site "St. Petersburg"]
[Round "14.77"]
[Annotator "ChessBase"]
[Result "0-1"]
[Date "2018.12.28"]
[WhiteElo "2400"]
[BlackElo "2579"]
[PlyCount "66"]
[TimeControl "900+10"]

1. d4 {[%emt 0:0:0]} Nf6 {[%emt 0:0:0]} 2. Nc3 {[%emt 0:0:0]} d5 {[%emt 0:0:0]
} 3. Bf4 {[%emt 0:0:0]} c5 {[%emt 0:0:15]} 4. e3 {[%emt 0:0:0]} Bg4 {[%emt 0:0:4]} 5. f3 {[%emt 0:0:1]} Bd7 {[%emt 0:0:3]} 6. dxc5 {[%emt 0:1:34]
} Qa5 {[%emt 0:1:17]} 7. Qd2 {[%emt 0:0:2]} Qxc5 {[%emt 0:0:0]} 8. 0-0-0 {[%emt 0:0:2]} Nc6 {[%emt 0:1:6]} 9. Nxd5 {[%emt 0:0:48]} Qxd5 {[%emt 0:0:9]} 10. Qxd5 {[%emt 0:0:2]} Nxd5 {[%emt 0:0:1]} 11. Rxd5 {[%emt 0:0:1]} e5 {[%emt 0:0:1]} 12. Bg3 {[%emt 0:0:18]} Be6 {[%emt 0:0:0]} 13. Rb5 {[%emt 0:1:53]} 0-0-0 {[%emt 0:0:7]} 14. c4 {[%emt 0:0:22]} Bb4 {[%emt 0:1:7]} 15. Rxb4 {[%emt 0:3:20]} Nxb4 {[%emt 0:0:4]} 16. Bxe5 {[%emt 0:0:1]
} Nxa2+ {[%emt 0:0:44]} 17. Kc2 {[%emt 0:0:1]} Nb4+ {[%emt 0:0:0]} 18. Kc3 {[%emt 0:0:1]} Na2+ {[%emt 0:1:52]} 19. Kc2 {[%emt 0:0:36]} Nb4+ {[%emt 0:0:57]} 20. Kc3 {[%emt 0:0:2]} Rd1 {[%emt 0:0:7]} 21. Ne2 {[%emt 0:2:48]
} f6 {[%emt 0:0:47]} 22. Bd4 {[%emt 0:0:49]} a5 {[%emt 0:0:15]
} 23. Ng3 {[%emt 0:0:51]} Rc1+ {[%emt 0:1:23]} 24. Kb3 {[%emt 0:0:37]} b5 {[%emt 0:0:19]
} 25. Be2 {[%emt 0:0:2]} Rc2 {[%emt 0:1:54]} 26. Ka3 {[%emt 0:0:0]} Kb7 {[%emt 0:1:37]} 27. cxb5 {[%emt 0:0:30]} Rhc8 {[%emt 0:0:28]} 28. Rd1 {[%emt 0:1:33]} Rc1 {[%emt 0:0:23]} 29. Ka4 {[%emt 0:0:42]} Rxd1 {[%emt 0:0:17]
} 30. Bxd1 {[%emt 0:0:1]} Rc1 {[%emt 0:0:1]} 31. Kxa5 {[%emt 0:0:0]
} Nd3 {[%emt 0:0:49]} 32. Ba4 {[%emt 0:0:19]} Rc8 {[%emt 0:0:0]} 33. b6 {[%emt 0:0:18]} Bc4 {[%emt 0:0:4]} 0-1

[Event "FIDE World Rapid-ch Open 2018"]
[White "Anisimov, Pavel"]
[Black "Anikonov, Dmitry"]
[Site "St. Petersburg"]
[Round "14.78"]
[Annotator "ChessBase"]
[Result "0-1"]
[Date "2018.12.28"]
[WhiteElo "2533"]
[BlackElo "2371"]
[PlyCount "149"]
[TimeControl "900+10"]

1. d4 {[%emt 0:0:0]} e6 {[%emt 0:0:0]} 2. Nf3 {[%emt 0:0:0]} d5 {[%emt 0:0:0]} 3. Bf4 {[%emt 0:0:0]} Nf6 {[%emt 0:0:17]} 4. e3 {[%emt 0:0:0]} Bd6 {[%emt 0:0:8]} 5. Bg3 {[%emt 0:0:2]} 0-0 {[%emt 0:0:8]} 6. Nbd2 {[%emt 0:0:0]} c5 {[%emt 0:0:27]} 7. c3 {[%emt 0:0:2]} Nc6 {[%emt 0:0:15]} 8. Bd3 {[%emt 0:0:1]} Qe7 {[%emt 0:1:3]} 9. Ne5 {[%emt 0:0:2]} Nd7 {[%emt 0:0:0]} 10. Nxd7 {[%emt 0:0:4]} Bxd7 {[%emt 0:0:8]} 11. Bxd6 {[%emt 0:0:3]} Qxd6 {[%emt 0:0:2]} 12. dxc5 {[%emt 0:0:2]} Qxc5 {[%emt 0:0:20]} 13. Bxh7+ {[%emt 0:0:3]} Kxh7 {[%emt 0:1:19]} 14. Qh5+ {[%emt 0:0:2]} Kg8 15. Ne4 Qc4 {[%emt 0:1:21]} 16. Ng5 {[%emt 0:0:27]} Rfd8 {[%emt 0:0:59]} 17. Qxf7+ {[%emt 0:0:3]
} Kh8 {[%emt 0:0:1]} 18. Qh5+ {[%emt 0:1:11]} Kg8 19. Qf7+ {[%emt 0:3:8]
} Kh8 {[%emt 0:0:4]} 20. Rd1 {[%emt 0:0:3]} Qh4 {[%emt 0:0:0]} 21. Nxe6 {[%emt 0:1:9]} Bxe6 {[%emt 0:0:14]} 22. Qxe6 {[%emt 0:0:1]} Re8 {[%emt 0:0:28]} 23. Qh3 {[%emt 0:0:14]} Qxh3 {[%emt 0:0:21]} 24. gxh3 {[%emt 0:0:1]
} Rad8 {[%emt 0:0:1]} 25. Kf1 {[%emt 0:0:40]} Re5 {[%emt 0:0:0]} 26. Rg1 {[%emt 0:0:8]} Rf8 {[%emt 0:0:8]} 27. Rg3 {[%emt 0:0:23]} Ref5 {[%emt 0:0:5]} 28. Rd2 {[%emt 0:0:12]} Ne5 {[%emt 0:0:6]} 29. Kg2 {[%emt 0:0:45]
} Nc4 {[%emt 0:0:16]} 30. Re2 {[%emt 0:0:3]} Nd6 {[%emt 0:0:0]} 31. f3 {[%emt 0:1:21]} R8f6 {[%emt 0:0:21]} 32. h4 {[%emt 0:0:51]} Rh5 {[%emt 0:0:29]} 33. Rg5 {[%emt 0:0:38]} Rf5 {[%emt 0:0:5]} 34. Rxh5+ {[%emt 0:0:33]
} Rxh5 {[%emt 0:0:2]} 35. Kg3 {[%emt 0:0:25]} g6 {[%emt 0:0:0]} 36. Rd2 {[%emt 0:1:56]} Nf5+ {[%emt 0:0:39]} 37. Kf4 {[%emt 0:0:10]} Rxh4+ {[%emt 0:0:56]} 38. Kg5 {[%emt 0:0:10]} Kg7 {[%emt 0:0:30]} 39. e4 {[%emt 0:0:9]
} Rh5+ {[%emt 0:0:21]} 40. Kf4 {[%emt 0:0:15]} Ne7 {[%emt 0:0:0]} 41. c4 {[%emt 0:0:49]} dxe4 {[%emt 0:0:55]} 42. Rd7 {[%emt 0:0:9]} Kf6 {[%emt 0:0:4]} 43. Kxe4 {[%emt 0:0:24]} Nf5 {[%emt 0:1:15]} 44. c5 {[%emt 0:0:51]
} Rxh2 {[%emt 0:1:33]} 45. Rxb7 {[%emt 0:0:2]} Rd2 {[%emt 0:0:0]} 46. f4 {[%emt 0:0:17]} Rd4+ {[%emt 0:0:4]} 47. Kf3 {[%emt 0:0:0]} Rc4 {[%emt 0:0:14]} 48. Rxa7 {[%emt 0:0:24]} Nd4+ {[%emt 0:0:19]} 49. Ke3 {[%emt 0:0:28]
} Ne6 {[%emt 0:0:1]} 50. Ra6 {[%emt 0:0:58]} Rxc5 {[%emt 0:0:0]} 51. a4 {[%emt 0:0:7]} Rc4 {[%emt 0:0:21]} 52. a5 {[%emt 0:1:2]} Ra4 {[%emt 0:0:12]
} 53. Kd3 {[%emt 0:0:49]} Kf5 {[%emt 0:0:6]} 54. Kc3 {[%emt 0:0:0]} Nxf4 {[%emt 0:0:10]} 55. b3 {[%emt 0:0:32]} Nd5+ {[%emt 0:0:20]} 56. Kb2 {[%emt 0:0:1]} Re4 {[%emt 0:0:59]} 57. Rd6 {[%emt 0:0:32]} Nc7 {[%emt 0:0:1]
} 58. Rd7 {[%emt 0:0:51]} Na6 {[%emt 0:0:20]} 59. Ra7 {[%emt 0:0:0]} Re6 {[%emt 0:0:7]} 60. Kc3 {[%emt 0:0:7]} Rc6+ {[%emt 0:0:8]} 61. Kd4 {[%emt 0:0:6]} g5 {[%emt 0:0:2]} 62. Rf7+ {[%emt 0:0:12]} Rf6 {[%emt 0:0:20]
} 63. Rb7 {[%emt 0:0:8]} g4 {[%emt 0:0:3]} 64. Ke3 {[%emt 0:0:0]} Re6+ {[%emt 0:0:36]} 65. Kf2 {[%emt 0:0:1]} Nc5 {[%emt 0:0:21]} 66. Rb5 {[%emt 0:0:25]} Re5 {[%emt 0:0:1]} 67. Kg2 {[%emt 0:0:10]} Na6 {[%emt 0:0:34]
} 68. Rb6 {[%emt 0:0:16]} Rxa5 {[%emt 0:0:7]} 69. Kg3 {[%emt 0:0:8]
} Nc5 {[%emt 0:0:3]} 70. Rb8 {[%emt 0:0:21]} Ne4+ {[%emt 0:0:0]} 71. Kg2 {[%emt 0:0:0]} Ra2+ {[%emt 0:0:3]} 72. Kg1 {[%emt 0:0:3]} Kf4 {[%emt 0:0:2]} 73. Rd8 {[%emt 0:0:7]} Ng5 {[%emt 0:0:9]} 74. b4 {[%emt 0:0:10]
} Nf3+ {[%emt 0:0:1]} 75. Kf1 {[%emt 0:0:1]} 0-1

[Event "FIDE World Rapid-ch Open 2018"]
[White "Makoveev, Ilya"]
[Black "Belozerov, Andrei"]
[Site "St. Petersburg"]
[Round "14.79"]
[Annotator "ChessBase"]
[Result "1-0"]
[Date "2018.12.28"]
[WhiteElo "2257"]
[BlackElo "2528"]
[PlyCount "135"]
[TimeControl "900+10"]

1. e4 c6 2. d4 {[%emt 0:0:0]} d5 {[%emt 0:0:0]} 3. f3 {[%emt 0:0:0]} dxe4 {[%emt 0:0:6]} 4. fxe4 {[%emt 0:0:0]} e5 {[%emt 0:0:2]} 5. Nf3 {[%emt 0:0:0]} Bg4 {[%emt 0:0:1]} 6. Bc4 {[%emt 0:0:42]} Nd7 {[%emt 0:0:2]} 7. c3 {[%emt 0:2:15]} b5 {[%emt 0:0:57]} 8. Bb3 {[%emt 0:3:18]} Ngf6 {[%emt 0:0:0]} 9. 0-0 {[%emt 0:0:26]} Bd6 {[%emt 0:0:9]} 10. Bg5 {[%emt 0:2:19]} 0-0 {[%emt 0:0:26]} 11. Nbd2 {[%emt 0:0:5]} Qc7 {[%emt 0:1:28]} 12. Qe1 {[%emt 0:1:46]
} Bh5 {[%emt 0:0:36]} 13. Qh4 {[%emt 0:0:55]} Bg6 {[%emt 0:0:0]} 14. Rae1 {[%emt 0:1:12]} Rae8 {[%emt 0:0:42]} 15. Kh1 {[%emt 0:1:1]} c5 {[%emt 0:1:7]} 16. dxe5 {[%emt 0:0:52]} Bxe5 {[%emt 0:2:22]} 17. Nxe5 {[%emt 0:0:4]
} Rxe5 {[%emt 0:1:23]} 18. Bf4 {[%emt 0:0:6]} c4 {[%emt 0:0:0]} 19. Bc2 {[%emt 0:0:20]} Qb7 {[%emt 0:1:37]} 20. Bxe5 {[%emt 0:0:5]} Nxe5 {[%emt 0:0:1]} 21. Nf3 {[%emt 0:1:28]} Nd3 {[%emt 0:0:22]} 22. Bxd3 {[%emt 0:0:11]
} cxd3 {[%emt 0:0:1]} 23. Nd2 {[%emt 0:0:47]} Re8 {[%emt 0:0:0]} 24. Rf3 {[%emt 0:0:42]} Bxe4 {[%emt 0:2:2]} 25. Rxf6 {[%emt 0:0:14]} Bxg2+ {[%emt 0:1:2]} 26. Kg1 {[%emt 0:0:0]} Rxe1+ {[%emt 0:0:50]} 27. Qxe1 {[%emt 0:0:1]} gxf6 {[%emt 0:0:3]} 28. Qg3+ {[%emt 0:0:1]} Kf8 {[%emt 0:0:0]} 29. Qxg2 {[%emt 0:0:1]} Qb6+ {[%emt 0:0:15]} 30. Kf1 {[%emt 0:0:26]
} Qe6 {[%emt 0:0:8]} 31. Qa8+ {[%emt 0:0:11]} Kg7 {[%emt 0:0:4]} 32. Qg2+ {[%emt 0:0:1]} Kf8 {[%emt 0:0:2]} 33. Nb3 {[%emt 0:0:28]} Qe3 {[%emt 0:0:0]} 34. Qf2 {[%emt 0:0:12]} Qe4 {[%emt 0:0:11]} 35. Nd2 {[%emt 0:0:17]} Qa4 {[%emt 0:0:54]} 36. a3 {[%emt 0:0:19]} Qd1+ {[%emt 0:0:1]} 37. Qe1 {[%emt 0:0:2]
} Qg4 {[%emt 0:0:4]} 38. Ne4 {[%emt 0:0:22]} Qh3+ {[%emt 0:0:0]} 39. Kg1 {[%emt 0:0:4]} Qg4+ {[%emt 0:0:6]} 40. Ng3 {[%emt 0:0:12]} h5 {[%emt 0:0:13]} 41. Qe4 {[%emt 0:0:10]} Qd1+ {[%emt 0:0:3]} 42. Nf1 {[%emt 0:0:6]
} Qe2 {[%emt 0:0:20]} 43. Qd4 {[%emt 0:0:16]} Kg7 {[%emt 0:0:0]} 44. b4 {[%emt 0:0:8]} Kg6 {[%emt 0:0:32]} 45. Qf2 {[%emt 0:0:7]} a6 {[%emt 0:0:16]
} 46. Ne3 {[%emt 0:0:11]} Qxf2+ {[%emt 0:0:27]} 47. Kxf2 {[%emt 0:0:1]
} Kg5 {[%emt 0:0:1]} 48. Kg3 {[%emt 0:0:12]} f5 {[%emt 0:0:0]} 49. h4+ {[%emt 0:0:1]} Kf6 {[%emt 0:0:1]} 50. Kf4 {[%emt 0:0:12]} d2 {[%emt 0:0:1]} 51. Kf3 {[%emt 0:0:5]} Ke5 {[%emt 0:0:1]} 52. Ke2 {[%emt 0:0:1]
} f4 {[%emt 0:0:2]} 53. Nf1 {[%emt 0:0:9]} Kf5 {[%emt 0:0:0]} 54. Nxd2 {[%emt 0:0:3]} Kg4 {[%emt 0:0:1]} 55. Nf3 {[%emt 0:0:12]} Kg3 {[%emt 0:0:2]} 56. Ne5 {[%emt 0:0:12]} f6 {[%emt 0:0:9]} 57. Nf3 {[%emt 0:0:3]
} Kg2 {[%emt 0:0:4]} 58. Nd2 {[%emt 0:0:30]} Kg3 {[%emt 0:0:0]} 59. c4 {[%emt 0:0:17]} f3+ {[%emt 0:0:55]} 60. Nxf3 bxc4 61. a4 {[%emt 0:0:10]
} c3 {[%emt 0:0:1]} 62. Nd4 {[%emt 0:0:5]} Kf4 {[%emt 0:0:0]} 63. Kd3 {[%emt 0:0:5]} Ke5 {[%emt 0:0:6]} 64. Kxc3 {[%emt 0:0:5]} f5 {[%emt 0:0:1]} 65. Nxf5 {[%emt 0:0:20]} Kxf5 {[%emt 0:0:1]} 66. b5 {[%emt 0:0:1]
} axb5 {[%emt 0:0:2]} 67. a5 {[%emt 0:0:2]} Kg4 {[%emt 0:0:0]} 68. a6 {[%emt 0:0:1]} 1-0

[Event "FIDE World Rapid-ch Open 2018"]
[White "Oganian, Miran"]
[Black "Fakhrutdinov, Timur"]
[Site "St. Petersburg"]
[Round "14.80"]
[Annotator "ChessBase"]
[Result "1-0"]
[Date "2018.12.28"]
[WhiteElo "2423"]
[BlackElo "2481"]
[PlyCount "71"]
[TimeControl "900+10"]

1. d4 {[%emt 0:0:0]} Nf6 {[%emt 0:0:0]} 2. c4 {[%emt 0:0:0]} e6 {[%emt 0:0:0]} 3. g3 {[%emt 0:0:0]} Bb4+ {[%emt 0:0:0]} 4. Bd2 {[%emt 0:0:0]} Be7 {[%emt 0:0:0]} 5. Bg2 {[%emt 0:0:0]} d5 {[%emt 0:0:0]} 6. Nf3 {[%emt 0:0:0]
} 0-0 {[%emt 0:0:0]} 7. 0-0 {[%emt 0:0:0]} c6 {[%emt 0:0:1]
} 8. Qc2 {[%emt 0:0:0]} Nbd7 {[%emt 0:0:6]} 9. Rd1 {[%emt 0:0:8]} b6 {[%emt 0:0:7]
} 10. Bf4 {[%emt 0:0:13]} Ba6 {[%emt 0:0:7]} 11. Ne5 {[%emt 0:0:0]} Rc8 {[%emt 0:0:44]} 12. Nc3 {[%emt 0:0:1]} Bxc4 {[%emt 0:0:32]} 13. Nxc4 {[%emt 0:0:2]} dxc4 {[%emt 0:0:2]} 14. e4 {[%emt 0:0:1]} b5 {[%emt 0:0:39]
} 15. a4 {[%emt 0:0:1]} a6 {[%emt 0:0:6]} 16. axb5 {[%emt 0:0:0]} axb5 {[%emt 0:0:4]} 17. Ra6 {[%emt 0:0:2]} b4 {[%emt 0:3:46]} 18. Na4 {[%emt 0:1:44]} c5 {[%emt 0:2:13]} 19. d5 {[%emt 0:4:36]} e5 {[%emt 0:0:0]} 20. Be3 {[%emt 0:0:4]} Ne8 {[%emt 0:1:0]} 21. d6 {[%emt 0:1:30]} Bg5 {[%emt 0:2:38]} 22. f4 {[%emt 0:1:27]} exf4 {[%emt 0:0:28]} 23. gxf4 {[%emt 0:0:1]
} Bh6 {[%emt 0:0:12]} 24. Qxc4 {[%emt 0:0:24]} Qh4 {[%emt 0:0:0]} 25. Qf1 {[%emt 0:4:4]} Nef6 {[%emt 0:0:14]} 26. Qf2 {[%emt 0:1:18]} Qxf2+ {[%emt 0:3:25]} 27. Kxf2 {[%emt 0:0:2]} Rfe8 {[%emt 0:1:9]} 28. Ra7 {[%emt 0:0:15]} Rcd8 {[%emt 0:0:1]} 29. Ke2 {[%emt 0:2:24]} Nxe4 {[%emt 0:0:0]} 30. Bxe4 {[%emt 0:0:9]} Rxe4 {[%emt 0:0:2]} 31. Rxd7 {[%emt 0:0:0]} Rxd7 {[%emt 0:0:49]} 32. Nxc5 {[%emt 0:0:1]} Rxe3+ {[%emt 0:0:14]} 33. Kxe3 {[%emt 0:0:2]} Rd8 {[%emt 0:0:7]} 34. Nb7 {[%emt 0:1:10]} Rd7 {[%emt 0:0:5]
} 35. Rc1 {[%emt 0:0:12]} g5 {[%emt 0:0:14]} 36. Rc7 {[%emt 0:0:0]} 1-0